fUST/lending_fUST_20240725
["ID","MTS","AMOUNT","RATE_DAILY","PERIOD"]
[333099216,1721863842178,-500.0,0.00013698,2]
[333099217,1721863842188,-1687.9,0.00013698,2]
[333099218,1721863842198,-500.0,0.00013698,2]
[333099219,1721863842208,-364.15548643,0.00013698,2]
[333099220,1721863842218,-500.0,0.00013698,2]
[333099221,1721863842228,-500.0,0.00013698,2]
[333099222,1721863842238,-500.0,0.00013698,2]
[333099223,1721863842248,-541.93,0.00013698,2]
[333099224,1721863842258,-500.88649305,0.00013698,2]
[333099225,1721863842268,-500.0,0.00013698,2]
[333099226,1721863842277,-994.71,0.00013698,2]
[333099227,1721863842287,-500.0,0.00013698,2]
[333099228,1721863842299,-500.0,0.00013698,2]
[333099229,1721863842309,-1426.16,0.00013698,2]
[333099230,1721863842319,-500.34912662,0.00013698,2]
[333099231,1721863842332,-500.0,0.00013698,2]
[333099232,1721863842341,-500.0,0.00013698,2]
[333099233,1721863842351,-500.0,0.00013698,2]
[333099234,1721863842360,-1144.52,0.00013698,2]
[333099235,1721863842369,-500.0,0.00013698,2]
[333099236,1721863842378,-500.0,0.00013698,2]
[333099237,1721863842387,-500.0,0.00013698,2]
[333099238,1721863842397,-504.76180352,0.00013698,2]
[333099239,1721863842407,-506.27059481,0.00013698,2]
[333099240,1721863842416,-1332.56,0.00013698,2]
[333099241,1721863842427,-500.0,0.00013698,2]
[333099242,1721863842438,-500.0,0.00013698,2]
[333099243,1721863842449,-1549.83,0.00013698,2]
[333099244,1721863842459,-500.0,0.00013698,2]
[333099245,1721863842471,-500.0,0.00013698,2]
[333099246,1721863842481,-500.0,0.00013698,2]
[333099247,1721863842495,-500.0,0.00013698,2]
[333099248,1721863842506,-500.0,0.00013698,2]
[333099249,1721863842516,-976.97,0.00013698,2]
[333099250,1721863842527,-934.06903,0.00013698,2]
[333099251,1721863842536,-500.0,0.00013698,2]
[333099252,1721863842548,-501.26766074,0.00013698,2]
[333099253,1721863842558,-934.06903,0.00013698,2]
[333099254,1721863842568,-500.0,0.00013698,2]
[333099255,1721863842578,-663.7,0.00013698,2]
[333099256,1721863842590,-500.0,0.00013698,2]
[333099257,1721863842600,-500.0,0.00013698,2]
[333099258,1721863842611,-500.0,0.00013698,2]
[333099259,1721863842623,-500.0,0.00013698,2]
[333099260,1721863842634,-500.0,0.00013698,2]
[333099261,1721863842649,-500.0,0.00013698,2]
[333099262,1721863842660,-285.450779,0.00013698,2]
[333099263,1721863842671,-183.383698,0.00013698,2]
[333099264,1721863842683,-500.0,0.00013698,2]
[333099265,1721863842694,-285.450779,0.00013698,2]
[333099266,1721863842705,-1523.46,0.00013698,2]
[333099267,1721863842715,-500.0,0.00013698,2]
[333099268,1721863842726,-1129.43,0.00013698,2]
[333099269,1721863842738,-354.6790574,0.00013698,2]
[333099270,1721863842748,-500.0,0.00013698,2]
[333099271,1721863842758,-500.0,0.00013698,2]
[333099272,1721863842768,-500.0,0.00013698,2]
[333099274,1721863842778,-500.0,0.00013698,2]
[333099276,1721863842788,-1265.57,0.00013698,2]
[333099277,1721863842800,-500.0,0.00013698,2]
[333099278,1721863842810,-621.99,0.00013698,2]
[333099279,1721863842819,-500.0,0.00013698,2]
[333099281,1721863842829,-609.05,0.00013698,2]
[333099283,1721863842841,-500.0,0.00013698,2]
[333099285,1721863842851,-500.0,0.00013698,2]
[333099286,1721863842861,-500.0,0.00013698,2]
[333099287,1721863842873,-323.24111165,0.00013698,2]
[333099288,1721863842885,-500.0,0.00013698,2]
[333099289,1721863842895,-1285.86,0.00013698,2]
[333099290,1721863842906,-730.94,0.00013698,2]
[333099291,1721863842916,-646.74,0.00013698,2]
[333099292,1721863842929,-500.0,0.00013698,2]
[333099293,1721863842940,-500.0,0.00013698,2]
[333099294,1721863842950,-505.09817227,0.00013698,2]
[333099295,1721863842961,-500.0,0.00013698,2]
[333099296,1721863842971,-1482.19,0.00013698,2]
[333099298,1721863842981,-500.0,0.00013698,2]
[333099300,1721863842991,-500.0,0.00013698,2]
[333099301,1721863843002,-500.0,0.00013698,2]
[333099302,1721863843013,-378.46151837,0.00013698,2]
[333099304,1721863843024,-500.0,0.00013698,2]
[333099306,1721863843034,-500.0,0.00013698,2]
[333099308,1721863843046,-500.0,0.00013698,2]
[333099309,1721863843056,-194.16946851,0.00013698,2]
[333099310,1721863843070,-638.553927,0.00013698,2]
[333099311,1721863843081,-513.37,0.00013698,2]
[333099312,1721863843091,-500.0,0.00013698,2]
[333099313,1721863843101,-500.0,0.00013698,2]
[333099314,1721863843112,-638.553927,0.00013698,2]
[333099315,1721863843123,-500.0,0.00013698,2]
[333099316,1721863843133,-500.0,0.00013698,2]
[333099317,1721863843146,-500.0,0.00013698,2]
[333099319,1721863843156,-500.0,0.00013698,2]
[333099321,1721863843166,-500.0,0.00013698,2]
[333099322,1721863843175,-500.0,0.00013698,2]
[333099323,1721863843185,-500.0,0.00013698,2]
[333099324,1721863843195,-525.67,0.00013698,2]
[333099326,1721863843205,-500.0,0.00013698,2]
[333099327,1721863843215,-500.0,0.00013698,2]
[333099329,1721863843224,-500.0,0.00013698,2]
[333099331,1721863843234,-500.0,0.00013698,2]
[333099332,1721863843243,-1027.17,0.00013698,2]
[333099333,1721863843253,-500.0,0.00013698,2]
[333099334,1721863843262,-1014.82,0.00013698,2]
[333099335,1721863843272,-500.0,0.00013698,2]
[333099336,1721863843281,-526.69274876,0.00013698,2]
[333099337,1721863843293,-500.76584667,0.00013698,2]
[333099338,1721863843304,-500.0,0.00013698,2]
[333099339,1721863843314,-500.0,0.00013698,2]
[333099340,1721863843324,-500.0,0.00013698,2]
[333099341,1721863843333,-500.0,0.00013698,2]
[333099342,1721863843343,-1241.84,0.00013698,2]
[333099343,1721863843354,-500.0,0.00013698,2]
[333099344,1721863843365,-500.0,0.00013698,2]
[333099346,1721863843375,-500.0,0.00013698,2]
[333099348,1721863843388,-531.43294767,0.00013698,2]
[333099349,1721863843400,-500.0,0.00013698,2]
[333099350,1721863843411,-1738.1,0.00013698,2]
[333099351,1721863843422,-500.0,0.00013698,2]
[333099352,1721863843434,-500.0,0.00013698,2]
[333099353,1721863843445,-500.0,0.00013698,2]
[333099354,1721863843455,-502.16761621,0.00013698,2]
[333099355,1721863843467,-500.84008749,0.00013698,2]
[333099356,1721863843479,-518.9998372,0.00013698,2]
[333099357,1721863843491,-500.0,0.00013698,2]
[333099358,1721863843502,-500.0,0.00013698,2]
[333099359,1721863843513,-500.0,0.00013698,2]
[333099360,1721863843525,-500.0,0.00013698,2]
[333099361,1721863843534,-151.0,0.00013698,2]
[333099362,1721863843545,-500.0,0.00013698,2]
[333099363,1721863843556,-500.0,0.00013698,2]
[333099364,1721863843566,-500.0,0.00013698,2]
[333099365,1721863843576,-500.0,0.00013698,2]
[333099366,1721863843586,-500.0,0.00013698,2]
[333099367,1721863843596,-951.62,0.00013698,2]
[333099368,1721863843607,-500.0,0.00013698,2]
[333099369,1721863843618,-151.0,0.00013698,2]
[333099370,1721863843628,-500.0,0.00013698,2]
[333099371,1721863843639,-500.0,0.00013698,2]
[333099372,1721863843651,-992.93,0.00013698,2]
[333099373,1721863843661,-500.0,0.00013698,2]
[333099374,1721863843672,-500.0,0.00013698,2]
[333099376,1721863843683,-500.0,0.00013698,2]
[333099377,1721863843694,-500.0,0.00013698,2]
[333099378,1721863843707,-3793.69,0.00013698,2]
[333099379,1721863843718,-500.0,0.00013698,2]
[333099380,1721863843730,-500.0,0.00013698,2]
[333099381,1721863843741,-768.76,0.00013698,2]
[333099382,1721863843752,-500.0,0.00013698,2]
[333099383,1721863843764,-500.0,0.00013698,2]
[333099384,1721863843774,-500.0,0.00013698,2]
[333099385,1721863843785,-500.0,0.00013698,2]
[333099386,1721863843796,-500.0,0.00013698,2]
[333099387,1721863843806,-500.0,0.00013698,2]
[333099388,1721863843817,-500.0,0.00013698,2]
[333099389,1721863843827,-151.0,0.00013698,2]
[333099390,1721863843839,-577.39,0.00013698,2]
[333099391,1721863843851,-500.0,0.00013698,2]
[333099392,1721863843862,-630.84,0.00013698,2]
[333099393,1721863843873,-500.0,0.00013698,2]
[333099394,1721863843883,-500.0,0.00013698,2]
[333099395,1721863843894,-500.0,0.00013698,2]
[333099396,1721863843907,-684.84,0.00013698,2]
[333099397,1721863843918,-500.0,0.00013698,2]
[333099398,1721863843929,-500.0,0.00013698,2]
[333099399,1721863843941,-500.0,0.00013698,2]
[333099400,1721863843952,-3284.3,0.00013698,2]
[333099401,1721863843963,-2814.84595454,0.00013698,2]
[333099402,1721863844016,-469.45404546,0.00013698,2]
[333099403,1721863844028,-1000.84597683,0.00013698,2]
[333099404,1721863844512,-1449.07557445,0.00013698,2]
[333099405,1721863844526,-834.37844872,0.00013698,2]
[333099406,1721863844536,-78.60843374,0.00013698,2]
[333099407,1721863844549,-3205.69156626,0.00013698,2]
[333099408,1721863844560,-847.50670206,0.00013698,2]
[333099431,1721864216910,10643.0250331,0.0001112,9]
[333099434,1721864805115,-300.80868013,9.51e-05,2]
[333099435,1721864827107,-797.5228598,9.51e-05,2]
[333099436,1721864827132,-200.0,9.51e-05,2]
[333099437,1721864827154,-200.0,9.51e-05,2]
[333099438,1721864827179,-250.0,9.823e-05,2]
[333099439,1721864827204,-250.0,9.85e-05,2]
[333099440,1721864827226,-250.0,9.876e-05,2]
[333099441,1721864827251,-250.0,9.903e-05,2]
[333099442,1721864827278,-250.0,9.93e-05,2]
[333099443,1721864827303,-250.0,9.957e-05,2]
[333099444,1721864827325,-250.0,9.984e-05,2]
[333099445,1721864827350,-300.0,9.998e-05,2]
[333099446,1721864827375,-154.69833824,9.999e-05,2]
[333099447,1721864827399,-155.05980589,9.999e-05,2]
[333099448,1721864827425,-154.72922386,9.999e-05,2]
[333099449,1721864827450,-157.49397308,9.999e-05,2]
[333099450,1721864827472,-605.8813231,9.999e-05,2]
[333099451,1721864827492,-265.86762839,9.999e-05,2]
[333099452,1721864827513,-403.29212142,9.999e-05,2]
[333099453,1721864827536,-521.54710872,9.999e-05,2]
[333099454,1721864827557,-154.82200547,9.999e-05,2]
[333099455,1721864827578,-180.43278137,9.999e-05,2]
[333099456,1721864827599,-341.64965108,9.999e-05,2]
[333099457,1721864827620,-156.91471787,9.999e-05,2]
[333099458,1721864827643,-458.99134643,9.999e-05,2]
[333099459,1721864827667,-663.51231387,9.999e-05,2]
[333099460,1721864827691,-170.90619862,0.0001,2]
[333099461,1721864827715,-250.0,0.00010011,2]
[333099462,1721864827738,-250.0,0.00010038,2]
[333099463,1721864827761,-250.0,0.00010065,2]
[333099464,1721864827782,-250.0,0.00010092,2]
[333099465,1721864827806,-250.0,0.00010119,2]
[333099466,1721864827829,-250.0,0.00010146,2]
[333099467,1721864827853,-250.0,0.00010173,2]
[333099468,1721864827877,-250.0,0.000102,2]
[333099469,1721864827899,-250.0,0.00010227,2]
[333099470,1721864827922,-250.0,0.00010253,2]
[333099471,1721864827945,-206.46102774,0.0001028,2]
[333099476,1721864965136,-300.0,9.509e-05,2]
[333099477,1721864965161,-200.0,9.51e-05,2]
[333099478,1721864965186,-200.0,9.51e-05,2]
[333099479,1721864965211,-24900.0,9.56e-05,2]
[333099480,1721864965235,-154.71377951,9.899e-05,2]
[333099481,1721864965261,-154.71377951,9.999e-05,2]
[333099482,1721864965285,-968.2231781,9.999e-05,2]
[333099483,1721864965307,-248.79975922,9.999e-05,2]
[333099484,1721864965331,-202.96395926,9.999e-05,2]
[333099485,1721864965354,-521.26452244,9.999e-05,2]
[333099486,1721864965376,-405.49932353,9.999e-05,2]
[333099487,1721864965398,-154.69833824,0.0001028,2]
[333099488,1721864965426,-234.39039554,0.0001028,2]
[333099489,1721864965450,-8099.57891383,0.0001028,2]
[333099490,1721864965472,-10279.54065323,0.0001028,2]
[333099491,1721864965500,-1625.75328864,0.0001028,2]
[333099492,1721864965525,-3782.30442803,0.0001028,2]
[333099493,1721864965547,-218.05703421,0.0001028,2]
[333099494,1721864965572,-2106.92015174,0.0001028,2]
[333099495,1721864965597,-295.60263737,0.0001028,2]
[333099496,1721864965620,-245.96477279,0.0001028,2]
[333099497,1721864965640,-4708.30389863,0.0001028,2]
[333099498,1721864965662,-43.53897226,0.0001028,2]
[333099499,1721864965684,-250.0,0.00010307,2]
[333099500,1721864965705,-250.0,0.00010334,2]
[333099501,1721864965726,-420.0,0.0001046,2]
[333099502,1721864965749,-206.16981217,0.0001088,2]
[333099503,1721864965770,-400.0,0.0001088,2]
[333099504,1721864965791,-587.0,0.00011506,2]
[333099505,1721864965815,-237.24397783,0.00012019,2]
[333099506,1721864965837,-153.0,0.00012278,2]
[333099507,1721864966517,161.16282976,0.0001028,2]
[333099508,1721864967374,919.7218057,9.117e-05,2]
[333099509,1721864973753,273.37336231,9.9e-05,2]
[333099510,1721864974726,579.48446728,0.0001028,2]
[333099511,1721864981865,273.37336231,9.9e-05,2]
[333099512,1721864990130,273.37336231,9.9e-05,2]
[333099514,1721864997131,200.0,0.0001,2]
[333099515,1721864998439,495.54367587,9.999e-05,2]
[333099516,1721864998520,273.37336231,9.9e-05,2]
[333099517,1721865006803,273.37336231,9.9e-05,2]
[333099520,1721865015972,273.37336231,9.9e-05,2]
[333099521,1721865024087,99.46364033,9.9e-05,2]
[333099522,1721865032436,-173.90972198,9.9e-05,2]
[333099523,1721865032445,-4128.81943135,0.0001028,2]
[333099524,1721865032456,-400.0,0.0001137,2]
[333099525,1721865032467,-154.69833824,0.00012119,2]
[333099526,1721865032478,-153.0,0.00012378,2]
[333099527,1721865032488,-237.24397782,0.00012414,2]
[333099528,1721865032502,-2898.60460757,0.0001246,2]
[333099529,1721865032513,-1609.61338674,0.0001246,2]
[333099530,1721865032524,-968.2231781,0.0001246,2]
[333099531,1721865032534,-2106.73594999,0.0001246,2]
[333099532,1721865032543,-154.69833824,0.0001246,2]
[333099533,1721865032552,-231.79343084,0.0001246,2]
[333099534,1721865032563,-3072.33102328,0.0001246,2]
[333099600,1721865039068,-709.97340475,0.0001246,2]
[333099601,1721865039079,-154.86316634,0.0001246,2]
[333099602,1721865039091,-153.0,0.000125,2]
[333099603,1721865039100,-237.24397782,0.00012809,2]
[333099604,1721865039110,-522.6987493,0.00012877,2]
[333099605,1721865039120,-300.0,0.00012899,2]
[333099606,1721865039129,-776.99771814,0.000129,2]
[333099607,1721865039139,-776.99771811,0.000129,2]
[333099608,1721865039148,-776.99771811,0.000129,2]
[333099609,1721865039158,-306.547776,0.00012959,2]
[333099610,1721865039169,-600.0,0.00013147,2]
[333099611,1721865039182,-237.24397782,0.00013203,2]
[333099613,1721865039192,-200.0,0.00013425,2]
[333099615,1721865039203,-237.24397782,0.00013598,2]
[333099618,1721865039213,-1716.31632861,0.00013598,2]
[333099636,1721865039385,-1945.47989268,0.00013598,2]
[333099638,1721865039395,-2000.0,0.00013598,2]
[333099640,1721865039404,-150.112233,0.000136,2]
[333099642,1721865039415,-150.112233,0.000136,2]
[333099645,1721865039430,-10011.75096448,0.00013686,2]
[333099647,1721865039443,-11380.92562951,0.00013686,2]
[333099649,1721865039453,-146527.252035,0.00013688,2]
[333099651,1721865039463,-151.0,0.00013698,2]
[333099653,1721865039475,-11882.84458161,0.00013698,2]
[333099655,1721865039487,-4037.13387877,0.00013698,2]
[333099658,1721865039498,-500.0,0.00013698,2]
[333099660,1721865039510,-500.0,0.00013698,2]
[333099662,1721865039522,-500.0,0.00013698,2]
[333099664,1721865039533,-227.16455224,0.00013698,2]
[333099666,1721865039542,-512.73288038,0.00013698,2]
[333099668,1721865039552,-500.0,0.00013698,2]
[333099670,1721865039561,-500.0,0.00013698,2]
[333099672,1721865039572,-500.0,0.00013698,2]
[333099675,1721865039583,-500.0,0.00013698,2]
[333099677,1721865039593,-500.0,0.00013698,2]
[333099679,1721865039602,-500.0,0.00013698,2]
[333099681,1721865039611,-501.48343815,0.00013698,2]
[333099683,1721865039621,-500.0,0.00013698,2]
[333099685,1721865039631,-416.03299135,0.00013698,2]
[333099687,1721865039643,-500.0,0.00013698,2]
[333099689,1721865039652,-500.0,0.00013698,2]
[333099692,1721865039664,-500.0,0.00013698,2]
[333099694,1721865039676,-500.0,0.00013698,2]
[333099696,1721865039688,-650.73,0.00013698,2]
[333099698,1721865039699,-500.0,0.00013698,2]
[333099700,1721865039711,-259.18873976,0.00013698,2]
[333099703,1721865039723,-500.0,0.00013698,2]
[333099705,1721865039734,-500.0,0.00013698,2]
[333099707,1721865039743,-500.0,0.00013698,2]
[333099709,1721865039753,-500.0,0.00013698,2]
[333099711,1721865039762,-500.0,0.00013698,2]
[333099713,1721865039771,-500.0,0.00013698,2]
[333099715,1721865039781,-169.5171672,0.00013698,2]
[333099717,1721865039791,-500.0,0.00013698,2]
[333099719,1721865039800,-1075.86,0.00013698,2]
[333099722,1721865039813,-500.0,0.00013698,2]
[333099724,1721865039822,-1302.99,0.00013698,2]
[333099726,1721865039832,-500.0,0.00013698,2]
[333099728,1721865039843,-500.0,0.00013698,2]
[333099730,1721865039854,-500.0,0.00013698,2]
[333099732,1721865039864,-500.0,0.00013698,2]
[333099734,1721865039874,-292.51694039,0.00013698,2]
[333099737,1721865039885,-504.64394764,0.00013698,2]
[333099739,1721865039896,-491.49517069,0.00013698,2]
[333099741,1721865039907,-500.0,0.00013698,2]
[333099743,1721865039917,-500.0,0.00013698,2]
[333099745,1721865039929,-184.98242495,0.00013698,2]
[333099747,1721865039939,-560.205681,0.00013698,2]
[333099749,1721865039949,-151.0,0.00013698,2]
[333099751,1721865039962,-3179.41,0.00013698,2]
[333099754,1721865039975,-560.205681,0.00013698,2]
[333099756,1721865039984,-500.0,0.00013698,2]
[333099758,1721865039993,-157.662597,0.00013698,2]
[333099760,1721865040002,-500.0,0.00013698,2]
[333099762,1721865040012,-500.0,0.00013698,2]
[333099764,1721865040021,-500.0,0.00013698,2]
[333099766,1721865040031,-500.0,0.00013698,2]
[333099768,1721865040040,-307.34,0.00013698,2]
[333099770,1721865040050,-500.0,0.00013698,2]
[333099772,1721865040060,-500.0,0.00013698,2]
[333099774,1721865040071,-1585.83,0.00013698,2]
[333099776,1721865040082,-500.0,0.00013698,2]
[333099779,1721865040092,-500.0,0.00013698,2]
[333099781,1721865040103,-500.0,0.00013698,2]
[333099783,1721865040115,-500.0,0.00013698,2]
[333099785,1721865040125,-500.0,0.00013698,2]
[333099787,1721865040135,-500.0,0.00013698,2]
[333099789,1721865040145,-500.0,0.00013698,2]
[333099791,1721865040154,-500.0,0.00013698,2]
[333099793,1721865040163,-594.58,0.00013698,2]
[333099795,1721865040173,-500.0,0.00013698,2]
[333099797,1721865040186,-500.0,0.00013698,2]
[333099799,1721865040195,-500.0,0.00013698,2]
[333099801,1721865040205,-500.0,0.00013698,2]
[333099803,1721865040214,-500.0,0.00013698,2]
[333099805,1721865040224,-699.04,0.00013698,2]
[333099807,1721865040233,-500.0,0.00013698,2]
[333099810,1721865040243,-500.0,0.00013698,2]
[333099812,1721865040252,-500.0,0.00013698,2]
[333099814,1721865040263,-500.0,0.00013698,2]
[333099816,1721865040274,-586.05,0.00013698,2]
[333099818,1721865040285,-500.0,0.00013698,2]
[333099820,1721865040294,-503.36448593,0.00013698,2]
[333099822,1721865040304,-500.0,0.00013698,2]
[333099824,1721865040314,-1560.19,0.00013698,2]
[333099826,1721865040325,-1843.77,0.00013698,2]
[333099829,1721865040337,-500.0,0.00013698,2]
[333099831,1721865040349,-500.0,0.00013698,2]
[333099833,1721865040361,-1300.17,0.00013698,2]
[333099835,1721865040371,-1087.94,0.00013698,2]
[333099837,1721865040382,-500.0,0.00013698,2]
[333099840,1721865040394,-500.0,0.00013698,2]
[333099842,1721865040405,-1439.47,0.00013698,2]
[333099844,1721865040415,-500.0,0.00013698,2]
[333099846,1721865040428,-500.0,0.00013698,2]
[333099848,1721865040440,-500.0,0.00013698,2]
[333099851,1721865040453,-500.0,0.00013698,2]
[333099853,1721865040463,-500.0,0.00013698,2]
[333099855,1721865040474,-501.20525823,0.00013698,2]
[333099857,1721865040485,-500.55675731,0.00013698,2]
[333099859,1721865040496,-500.0,0.00013698,2]
[333099862,1721865040509,-500.0,0.00013698,2]
[333099864,1721865040521,-500.0,0.00013698,2]
[333099866,1721865040532,-467.3288532,0.00013698,2]
[333099868,1721865040543,-500.0,0.00013698,2]
[333099870,1721865040553,-500.0,0.00013698,2]
[333099873,1721865040564,-752.29,0.00013698,2]
[333099875,1721865040575,-1684.76,0.00013698,2]
[333099877,1721865040587,-500.0,0.00013698,2]
[333099880,1721865040601,-500.0,0.00013698,2]
[333099882,1721865040611,-1138.16,0.00013698,2]
[333099884,1721865040620,-500.0,0.00013698,2]
[333099886,1721865040629,-500.0,0.00013698,2]
[333099888,1721865040639,-500.0,0.00013698,2]
[333099890,1721865040648,-500.0,0.00013698,2]
[333099892,1721865040657,-500.0,0.00013698,2]
[333099894,1721865040667,-500.0,0.00013698,2]
[333099896,1721865040676,-500.0,0.00013698,2]
[333099898,1721865040686,-500.0,0.00013698,2]
[333099900,1721865040695,-500.0,0.00013698,2]
[333099902,1721865040705,-500.0,0.00013698,2]
[333099904,1721865040714,-507.51728735,0.00013698,2]
[333099906,1721865040724,-1171.23,0.00013698,2]
[333099908,1721865040733,-1408.008146,0.00013698,2]
[333099910,1721865040742,-1408.008146,0.00013698,2]
[333099912,1721865040751,-1714.52,0.00013698,2]
[333099914,1721865040761,-500.0,0.00013698,2]
[333099916,1721865040770,-500.46070068,0.00013698,2]
[333099918,1721865040779,-500.0,0.00013698,2]
[333099920,1721865040790,-500.0,0.00013698,2]
[333099922,1721865040800,-1316.55,0.00013698,2]
[333099924,1721865040810,-151.0,0.00013698,2]
[333099926,1721865040819,-500.0,0.00013698,2]
[333099928,1721865040830,-500.0,0.00013698,2]
[333099930,1721865040839,-637.15,0.00013698,2]
[333099932,1721865040848,-500.0,0.00013698,2]
[333099934,1721865040857,-151.0,0.00013698,2]
[333099936,1721865040867,-500.0,0.00013698,2]
[333099938,1721865040876,-500.0,0.00013698,2]
[333099940,1721865040886,-500.0,0.00013698,2]
[333099942,1721865040895,-500.0,0.00013698,2]
[333099945,1721865040905,-761.33,0.00013698,2]
[333099947,1721865040914,-500.0,0.00013698,2]
[333099949,1721865040923,-500.0,0.00013698,2]
[333099951,1721865040933,-158.020548,0.00013698,2]
[333099953,1721865040943,-502.69132394,0.00013698,2]
[333099955,1721865040952,-736.95,0.00013698,2]
[333099957,1721865040961,-161.25775841,0.00013698,2]
[333099959,1721865040970,-1278.61,0.00013698,2]
[333099961,1721865040980,-1237.55,0.00013698,2]
[333099963,1721865040989,-500.0,0.00013698,2]
[333099965,1721865040999,-500.0,0.00013698,2]
[333099967,1721865041008,-500.0,0.00013698,2]
[333099969,1721865041017,-519.83,0.00013698,2]
[333099971,1721865041026,-500.0,0.00013698,2]
[333099973,1721865041035,-500.0,0.00013698,2]
[333099975,1721865041045,-151.0,0.00013698,2]
[333099977,1721865041054,-559.29,0.00013698,2]
[333099979,1721865041063,-500.0,0.00013698,2]
[333099981,1721865041074,-1154.2,0.00013698,2]
[333099983,1721865041083,-500.0,0.00013698,2]
[333099985,1721865041092,-608.13396375,0.00013698,2]
[333099987,1721865041102,-500.0,0.00013698,2]
[333099989,1721865041112,-500.0,0.00013698,2]
[333099991,1721865041121,-500.0,0.00013698,2]
[333099993,1721865041131,-151.0,0.00013698,2]
[333099995,1721865041141,-151.0,0.00013698,2]
[333099997,1721865041150,-1528.11,0.00013698,2]
[333099999,1721865041160,-500.0,0.00013698,2]
[333100001,1721865041169,-500.0,0.00013698,2]
[333100003,1721865041180,-500.0,0.00013698,2]
[333100005,1721865041189,-500.0,0.00013698,2]
[333100007,1721865041199,-1823.68,0.00013698,2]
[333100009,1721865041209,-500.0,0.00013698,2]
[333100011,1721865041219,-500.0,0.00013698,2]
[333100013,1721865041229,-1091.18,0.00013698,2]
[333100015,1721865041238,-509.19,0.00013698,2]
[333100017,1721865041248,-514.53,0.00013698,2]
[333100019,1721865041257,-500.0,0.00013698,2]
[333100021,1721865041267,-500.0,0.00013698,2]
[333100023,1721865041276,-500.0,0.00013698,2]
[333100025,1721865041286,-514.49840052,0.00013698,2]
[333100027,1721865041295,-500.0,0.00013698,2]
[333100029,1721865041305,-151.0,0.00013698,2]
[333100032,1721865041315,-500.0,0.00013698,2]
[333100034,1721865041325,-482.01036955,0.00013698,2]
[333100036,1721865041335,-167.847791,0.00013698,2]
[333100038,1721865041344,-500.0,0.00013698,2]
[333100040,1721865041354,-167.847791,0.00013698,2]
[333100042,1721865041363,-500.0,0.00013698,2]
[333100044,1721865041373,-1076.32,0.00013698,2]
[333100046,1721865041383,-502.35351957,0.00013698,2]
[333100048,1721865041392,-500.0,0.00013698,2]
[333100050,1721865041401,-403.30158811,0.00013698,2]
[333100052,1721865041410,-151.0,0.00013698,2]
[333100054,1721865041420,-500.0,0.00013698,2]
[333100056,1721865041434,-500.0,0.00013698,2]
[333100058,1721865041443,-500.0,0.00013698,2]
[333100060,1721865041452,-500.0,0.00013698,2]
[333100062,1721865041462,-500.0,0.00013698,2]
[333100064,1721865041474,-179.56093244,0.00013698,2]
[333100066,1721865041483,-500.0,0.00013698,2]
[333100068,1721865041492,-500.0,0.00013698,2]
[333100070,1721865041502,-994.69,0.00013698,2]
[333100071,1721865041515,-500.89620177,0.00013698,2]
[333100072,1721865041527,-500.0,0.00013698,2]
[333100073,1721865041538,-500.0,0.00013698,2]
[333100074,1721865041549,-500.0,0.00013698,2]
[333100075,1721865041560,-501.53042656,0.00013698,2]
[333100076,1721865041571,-500.0,0.00013698,2]